Cogmind - Beta 16 --- EXPLORER MODE // 2025.12.03 @ 11:32:51 Player: K.K.Y. Result: Destroyed by as-89520 with Assembled Rifle Performance ------------- Evolutions (0) 0 Regions Visited (2) 400 Robots Destroyed (38) 190 Value Destroyed (418) 418 Prototype IDs (1) 20 Alien Tech Used (0) 0 Bonus (0) 0 TOTAL SCORE: 1028 Bonus ------- None Cogmind --------- Core Integrity 0/250 Matter 290/300 Energy 100/100 System Corruption 1% Temperature Critical (638) Movement Core (50) Location -10/Mines Parts ------- > --- POWER (1) -------- (None) > --- PROPULSION (2) --- (None) > --- UTILITY (3) ------ Terrain Scan Processor > --- WEAPON (2) ------- (None) > --- INVENTORY (5) ---- Large Storage Unit Improved Terrain Scanner Terrain Scan Processor Datajack Mining Laser Peak State ------------ > --- POWER ------------ Ion Engine > --- PROPULSION ------- Light Treads Light Treads > --- UTILITY ---------- Structural Scanner Improved Terrain Scanner Terrain Scan Processor > --- WEAPON ----------- Improved Medium Laser Improved Medium Laser > --- INVENTORY -------- Large Storage Unit Improved Terrain Scanner Terrain Scan Processor Datajack Mining Laser [Rating: 15] Favorites ----------- Power Ion Engine Engine Ion Engine Propulsion Light Treads Treads Light Treads Utility Improved Terrain Scanner Device Improved Terrain Scanner Processor Targeting Computer Weapon EM Pulse Gun Energy Gun EM Pulse Gun Ballistic Cannon Light Cannon Build | -11 -10 -10 ------- Run | Yrd Mat Min Slots Evolved 1 | . 1 . Power . | . . . Propulsion . | . . . Utility 1 | . 1 . Weapon . | . . . Parts Attached 17 | 7 10 . Power 2 | 1 1 . Engine 2 | 1 1 . Core . | . . . Reactor . | . . . Propulsion 4 | 2 2 . Treads 4 | 2 2 . Leg . | . . . Wheel . | . . . Hover . | . . . Flight . | . . . Utility 6 | 2 4 . Device 2 | . 2 . Storage . | . . . Processor 4 | 2 2 . Hackware . | . . . Protection . | . . . Artifact . | . . . Weapon 5 | 2 3 . Energy Gun 4 | 2 2 . Energy Cannon . | . . . Ballistic Gun . | . . . Ballistic Cannon 1 | . 1 . Launcher . | . . . Special Weapon . | . . . Impact Weapon . | . . . Slashing Weapon . | . . . Piercing Weapon . | . . . Special Melee Weapon . | . . . Unidentified Prototypes 1 | . 1 . Parts Lost 6 | . . 6 Power 1 | . . 1 Propulsion 2 | . . 2 Utility 2 | . . 2 Weapon 1 | . . 1 Highest Loss Streak 6 | . . 6 To Critical Strikes 1 | . . 1 Average Backups 4 | 3 5 5 Power . | . . . Propulsion . | . . . Utility 2 | 2 3 3 Weapon . | . 1 1 Tool/Special . | . . . Unused Backups 7 | . 2 5 Power . | . . . Propulsion . | . . . Utility 5 | . 2 3 Weapon 1 | . . 1 Tool/Special 1 | . . 1 Average Slot Usage (%) 98 | . 98 94 Engine 11 | . 12 11 Treads 24 | . 25 23 Device 16 | . 16 21 Processor 19 | . 20 12 Energy Gun 22 | . 22 24 Ballistic Cannon 1 | . 1 . Peak Build Rating 15 | 7 15 15 Average Rating 11 | 5 11 14 On Entrance 7 | . 7 15 Avg Prop Armor Cover (%) . | . . . Naked Turns . | . . . Heaviest Build 13 | 7 13 13 Greatest Support 40 | 40 40 40 Greatest Overweight (x) 2 | 2 . . Average Overweight (x) . | . . . Largest Inventory Capacity 5 | 5 5 5 Average Capacity 5 | 5 5 5 Most Carried 5 | 5 5 5 Average Carried 4 | 3 4 5 Final Capacity 5 | 5 5 5 Final Carried 5 | 5 5 5 Class Distribution -------------------- 66% | Hacker-Mutant 32% | Scavenger-Skirmisher Dominant Class ---------------- Hacker-Mutant | -10/Materials Scavenger-Skirmisher | -10/Mines Resources | -11 -10 -10 ----------- Run | Yrd Mat Min Matter Collected 434 | 270 152 12 Remotely . | . . . Salvage Created 1103 | 301 776 26 Parts 78 | 28 50 . Haulers Intercepted 1 | . 1 . Recyclers Shooed 1 | 1 . . Parts Field Recycled . | . . . Retrieved Matter . | . . . Parts Self-Destructed . | . . . Prevented . | . . . Parts Restored . | . . . Kills | -11 -10 -10 ------- Run | Yrd Mat Min Combat Hostiles Destroyed 13 | . 8 5 Guns 12 | . 7 5 AOE 1 | . 1 . Classes Destroyed 10 | 3 5 2 Worker 3 | 1 2 . Builder 8 | . 8 . Tunneler 10 | 9 1 . Hauler 1 | . 1 . Recycler 4 | 1 3 . Watcher 2 | . 2 . Swarmer 6 | . 6 . Grunt 2 | . 2 . Demolisher 2 | . . 2 Assembled 3 | . . 3 Best Kill Streak 5 | 5 4 5 Combat Bots Only 5 | . 2 5 Max Kills in Single Turn 2 | 2 2 2 Gunslinging 1 | . . 1 Exploded 1 | . 1 . Melee . | . . . Uniques/NPCs Destroyed . | . . . Combat | -11 -10 -10 -------- Run | Yrd Mat Min Hostile Shots Fired 91 | . 32 59 Missed 15 | . 10 5 Hits 76 | . 22 54 Melee 10 | . . 10 Projectile 66 | . 22 44 AOE 6 | . . 6 Critical Strikes 2 | . . 2 Part Disruptions 1 | . . 1 Damage Taken 866 | 26 167 673 Core 256 | . 33 223 Absorbed by Shields . | . . . Ignored by Resistances 534 | 15 114 405 Core Remaining (%) 100 | 100 . . Volleys Fired 77 | 17 47 13 Largest 2 | 2 2 2 Hottest 112 | 80 112 112 Shots Fired 149 | 34 89 26 Gun 145 | 34 85 26 Cannon 4 | . 4 . Launcher . | . . . Special . | . . . Kinetic 4 | . 4 . Thermal 59 | . 33 26 Explosive . | . . . Electromagnetic 86 | 34 52 . Robot Hit Streak 19 | 19 17 17 Robot Miss Streak 2 | 1 2 2 Penetration Max . | . . . Secondary Targets 5 | . 2 3 Max Gunslinging Chain 1 | . 1 1 Shots Hit Robots 123 | 30 70 23 Core Hits 45 | 11 24 10 Critical Kills . | . . . Critical Parts Destroyed . | . . . Critical Strikes 5 | . 3 2 Burn 5 | . 3 2 Melee Attacks . | . . . Impact . | . . . Slashing . | . . . Piercing . | . . . Sneak Attacks . | . . . Combat Hostiles . | . . . Follow-up Attacks . | . . . Damage Inflicted 2213 | 613 1206 394 Guns 1821 | 424 1003 394 Cannons 49 | . 49 . Explosions 340 | 189 151 . Melee . | . . . Ramming 3 | . 3 . Kinetic 49 | . 49 . Thermal 1196 | 189 613 394 Explosive . | . . . Electromagnetic 965 | 424 541 . Impact . | . . . Slashing . | . . . Piercing . | . . . Highest Corruption 1 | . 1 1 Average Corruption 1 | . 1 1 Corruption Purged . | . . . Corruption Blocked . | . . . Effects 20 | . 18 2 Message Errors 6 | . 6 . Matter Fused 5 | . 5 . Heat Flow Errors 1 | . 1 . Energy Discharges 3 | . 3 . Data Loss (minor) 3 | . 2 1 Data Loss (major) 1 | . 1 . Misfires 1 | . . 1 Overload Shots . | . . . Overflow Damage 21 | 21 . . Projectiles . | . . . Explosions 21 | 21 . . Melee . | . . . Knockbacks 1 | . 1 . Impact . | . . . Kinetic 1 | . 1 . Secondary . | . . . Self-Inflicted Damage 37 | 26 11 . Shots 3 | 2 1 . Rammed 5 | . 2 3 Targets Rammed 5 | . 2 3 Kicked . | . . . Crushed . | . . . Highest Temperature 698 | 102 367 698 Average Temperature 126 | 33 102 358 Received Heat Transfer 208 | . 48 160 Effects 12 | . 2 10 Shutdowns 2 | . . 2 Energy Bleed 1 | . . 1 Interference 6 | . 2 4 Matter Decay 1 | . . 1 Damage (minor) 2 | . . 2 Siege Activations . | . . . Martial Activations . | . . . Shielding Activations . | . . . Robots Disrupted . | . . . Combat Hostiles . | . . . Robots Corrupted 3 | 1 2 . Combat Hostiles . | . . . Parts Fried 8 | . 8 . Impact Corruptions . | . . . Robots Melted . | . . . Combat Hostiles . | . . . Parts Melted 2 | 1 1 . Heat Transferred 2620 | 250 1371 999 Parts Sabotaged . | . . . Parts Stolen . | . . . Parts Stripped . | . . . Power Chain Reactions 6 | 3 3 . Alert | -11 -10 -10 ------- Run | Yrd Mat Min Maximum Alert Level . | . . . Low Security (%) 100 | 100 100 100 Level 1 . | . . . Level 2 . | . . . Level 3 . | . . . Level 4 . | . . . Level 5 . | . . . High Security . | . . . Max Security . | . . . Peak Influence 60 | 15 60 50 Initial . | . . . Average 3 | 2 3 2 Influence Increases 408 | 55 303 50 Destroy 0b10 Robot/C 200 | . 160 40 Destroy 0b10 Robot/NC 140 | 55 85 . Destroy Leader 56 | . 46 10 Destroy Structure 12 | . 12 . Influence Decreases 408 | 55 303 50 Time Decay 373 | 55 303 15 Lost Part 35 | . . 35 Squads Dispatched . | . . . Investigation . | . . . Extermination . | . . . Reinforcement . | . . . Assault . | . . . Garrison . | . . . Intercept . | . . . Searches Triggered . | . . . Construction Impeded . | . . . Haulers Reinforced . | . . . Active Scanning Responses . | . . . Cargo Convoy Interrupts . | . . . Stealth | -11 -10 -10 --------- Run | Yrd Mat Min Distress Signals . | . . . Communications Jammed . | . . . Distress Signals . | . . . Times Spotted 28 | . 9 19 Peak Tracking Total 10 | . 2 10 Tactical Retreats . | . . . Traps | -11 -10 -10 ------- Run | Yrd Mat Min Traps Triggered 3 | . 3 . Indirectly . | . . . Trap Hack Attempts . | . . . Triggered . | . . . Disarmed . | . . . Reprogrammed . | . . . Reused . | . . . Traps Extracted . | . . . Installed . | . . . Triggered . | . . . Machines | -11 -10 -10 ---------- Run | Yrd Mat Min Machines Disabled . | . . . Max in Single Turn . | . . . Machines Repaired . | . . . Machines Dismantled . | . . . Machines Sabotaged . | . . . Overloaded Fab Kills . | . . . Hacking | -11 -10 -10 --------- Run | Yrd Mat Min Machines Accessed 2 | . 2 . Terminals . | . . . Fabricators . | . . . Repair Stations . | . . . Recycling Units 2 | . 2 . Scanalyzers . | . . . Garrison Access . | . . . Total Hacks 3 | . 3 . Successful 2 | . 2 . Failed 1 | . 1 . Catastrophic . | . . . Database Lockouts . | . . . Manual . | . . . Terminals . | . . . Fabricators . | . . . Repair Stations . | . . . Recycling Units 3 | . 3 . Scanalyzers . | . . . Garrison Access . | . . . Terminal Hacks . | . . . Fabricator Hacks . | . . . Repair Station Hacks . | . . . Recycling Unit Hacks 2 | . 2 . Retrieve Components 2 | . 2 . Scanalyzer . | . . . Garrison Access Hacks . | . . . Unauthorized Hacks . | . . . Terminals . | . . . Fabricators . | . . . Repair Stations . | . . . Recycling Units . | . . . Scanalyzers . | . . . Garrison Access . | . . . Data Cores Recovered . | . . . Used . | . . . Hacking Detections . | . . . Full Trace Events . | . . . Feedback Events . | . . . Feedback Blocked . | . . . Robot Schematics Acquired . | . . . Robots Built . | . . . Authchips . | . . . Time . | . . . Total Robot Build Rating . | . . . Part Schematics Acquired . | . . . Parts Built . | . . . Authchips . | . . . Time . | . . . Total Part Build Rating . | . . . Part Studies Acquired . | . . . Parts Repaired . | . . . Time . | . . . Parts Recycled . | . . . Recycled Matter . | . . . Retrieved Matter . | . . . Retrieved Components 12 | . 12 . Parts Scanalyzed . | . . . Part Schematics Acquired . | . . . Parts Damaged . | . . . Bothacking | -11 -10 -10 ------------ Run | Yrd Mat Min Used RIF Installer . | . . . Robots Hacked . | . . . Non-combat . | . . . Combat . | . . . Robot Hacks Applied . | . . . Relay Couplers Released . | . . . Fabnet Peak Effective % . | . . . Robots Rewired . | . . . Allies Hacked . | . . . Hacks Repelled . | . . . Allies | -11 -10 -10 -------- Run | Yrd Mat Min Total Allies . | . . . Largest Group . | . . . Highest-Rated Group . | . . . Highest-Rated Ally . | . . . Total Orders . | . . . Ally Attacks . | . . . Total Damage . | . . . Kills . | . . . Allies Corrupted . | . . . Allies Melted . | . . . Intel | -11 -10 -10 ------- Run | Yrd Mat Min Active Infowar (turns) 2890 | . 2677 213 Terrain 2890 | . 2677 213 Structural 1146 | . 944 202 Robot Analysis Total . | . . . Derelict Logs Recovered . | . . . Drone Launches . | . . . Drone Recoveries . | . . . Exploration | -11 -10 -10 ------------- Run | Yrd Mat Min Turns Passed 3190 | 262 2687 241 Spaces Moved 1765 | 130 1538 97 Core 42 | 42 . . Treads 1723 | 88 1538 97 Legs . | . . . Wheels . | . . . Hover . | . . . Flight . | . . . Fastest Speed 50 | 50 160 160 Average Speed 158 | 144 160 160 Slowest Speed 160 | 160 160 160 Overloaded Moves . | . . . Propulsion Burnouts . | . . . Robots Hopped . | . . . Potential Cave-ins . | . . . Cave-ins Triggered . | . . . Exploration Rate (%) 46 | 5 99 36 Regions Visited 2 Branch Regions 1 Pre-discovered Areas . | . . . Known Exits Taken 2 | 1 1 . Unknown Exits Taken . | . . . Scrap Searched . | . . . Spaces Dug . | . . . Terrain Destroyed 23 | 11 12 . Melee . | . . . Projectile . | . . . AOE 23 | 11 12 . Terrain Rammed . | . . . Walls Destroyed . | . . . Machines Disabled . | . . . Actions | -11 -10 -10 --------- Run | Yrd Mat Min Total 2004 | 170 1678 156 Wait 117 | 5 69 43 Move 1763 | 129 1537 97 Hop . | . . . Pick Up 15 | 12 3 . Fast Attach 5 | . 5 . Attach 8 | 7 1 . Detach 2 | . 2 . Swap 4 | . 4 . Drop 8 | . 8 . Fire 77 | 17 47 13 Melee . | . . . Ram . | . . . Kick . | . . . Crush 5 | . 2 3 Escape Stasis . | . . . Rewire . | . . . Trap . | . . . Miscellaneous . | . . . Route ------- -11/Scrapyard -10/Materials (discovered 5 exits: *Mat x3 / *Min / *Sub) -10/Mines (discovered 1 exit: Sub) History --------- Turn | Location | Event 5 | -11/Scrapyard | Identified exit to Materials 5 | -11/Scrapyard | Discovered exit to Materials (range 15) 263 | -11/Scrapyard | Entered Materials 263 | -10/Materials | Evolved 1 slot: Utility x1 313 | -10/Materials | Build established: Hacker-Mutant 593 | -10/Materials | Identified exit to Materials 593 | -10/Materials | Discovered exit to Materials (range 4) 865 | -10/Materials | Discovered exit to Materials (range 3) 993 | -10/Materials | Identified exit to Subcaves 993 | -10/Materials | Discovered exit to Subcaves (range 8) 1046 | -10/Materials | Identified exit to Mines 1046 | -10/Materials | Discovered exit to Mines (range 7) 1172 | -10/Materials | Discovered exit to Materials (range 5) 2421 | -10/Materials | Build established: Scavenger-Skirmisher 2950 | -10/Materials | Entered Mines 3069 | -10/Mines | Discovered exit to Subcaves (range 14) 3135 | -10/Mines | Assembled infested the area 3179 | -10/Mines | Core integrity fell below 50% 3188 | -10/Mines | Core integrity fell below 20% 3191 | -10/Mines | Destroyed by as-89520 with Assembled Rifle Last Messages --------------- 03178_ Lgt. Treads destroyed. 03179_ Overheating: Terrain Scan Processor damaged (-15). 03179_ The unstable cave ceiling collapses. 03182_ as-92124 destroyed. 03182_ Switching to secondary target: as-27489. 03183_ Power failure, Ion Engine shutdown. 03185_ Overheating: System interference. 03185_ Imp. Medium Laser temporarily disabled. 03185_ Imp. Medium Laser severed. 03186_ Overheating: Matter decay (-45). 03187_ The unstable cave ceiling collapses. 03187_ Slammed into as-41750. 03188_ Overheating: Energy bleed (-45). 03188_ Acquired 12 matter. 03188_ Ion Engine destroyed. 03188_ Slammed into as-41750. 03190_ Imp. Medium Laser destroyed. 03191_ Overheating: Lgt. Treads damaged (-2). 03191_ Lgt. Treads destroyed. Map ----- +----------------------------------------------------+ | ?????????????????????????????????????????????????? | | ?????????????????????????????????????????????????? | | ?????????????????????????????????????????????????? | | ?????????????????????????????????????????????????? | | ?????????????????????????????????????????????????? | | ?????????????????????????????????????????????????? | | ?????????????????????????????????????????????????? | | ?????????????????????????????????????????????????? | | ?????????????????????????????????????????????????? | | ?????????????????????????????????????????????????? | | ?????????????????????????????????????????????????? | | ????????????????????? ?????????????????????????? | | ????????????????????? ? ? ?????????????????????? | | ????????????????????## ? ??????????????????????? | | ?????????????????##?## ?? ??????????????????????? | | ??????????????????###a ??#??#??????????????????? | | ???????????????????# ???????#??#????????????? | | ??????????????????## aaa#?????????###???????????? | | ???????????????????? a #?#??????????#??????????? | | ????????????????????# % #?#????????##?#?????????? | | ?????????????#??#??## % ??#?#?????##????????????? | | ????????????????????# ??#??#?#??????#?????????? | | ?????????????????????# a #####???#?#?????????????? | | ???????????#?##?????## a ###?????##?##?#?????? | | ???????????#????#??### a # ###?#??#####????????? | | ??????????##?##??#??## #a@ # ##?#?#???#?????????? | | ???????????#??###?### # ##???##??##??#?????? | | ???????????????#?#??# [ ##??####???###??????? | | ?????????????#??????### % #####?##??#####????? | | ??????????#??#???#??# # % #####??####### ????? | | ?????????????#????#### t ##??###### ???? | | ??????????????#?##???## #### ##??### ???? | | ??????????#????##?????######### ##?### ??? | | ????????????#??#??#??#?????### ##### ??? | | ????????????###????##??#??### #### ?? | | ??????????????#??????#???#### ?? | | ?????????????? ?#???######## #? | | ?????????????? ?#??####?### ##? | | ????????????????????###?## ##### | | ??????????????? #?#??#?### ####?? | | ???????????????????#?#?#### ### ###?#? | | ????????????????????#?#?### #### ###???? | | ???????????????????#???#### ###?#####?#?? | | ????????????????????????## ##?#######??? | | ???????????????????? ???## ###????#?????? | | ????????????????????? ??### ## ###???#?##???# | | ???????????????????????#### ### ##?###?######? | | ??????????????????????## ### ############## | | ????????????????????# ## ### ######### ### | | ?????????????????#?#? ## ## ### ### ## | +----------------------------------------------------+ Best States ------------- Heat Dissipation 25 Energy Generation 10 Energy Capacity 250 Matter Stores 300 Matter Capacity 300 Sight Range 16 Terrain Scan Range 16 Terrain Scan Density 160 Resistance: KI 35 Resistance: TH 35 Resistance: EX 35 Resistance: EM 35 Resistance: I 35 Resistance: S 35 Resistance: P 35 Evasion (%) 50 Targeting Accuracy 10 Recoil Reduction 2 Offensive Hacking 20 Item Schematics ----------------- None Robot Schematics ------------------ None Fabricated ------------ Nothing Repaired ---------- Nothing Studied --------- None Alien Tech Used ----------------- None Achievements -------------- None Challenges ------------ None Game ------ Seed GuidedSiegeLeg Manual? 0 Play Time 00:14:12 Cumulative 159.0 hours Start 2025.12.03 @ 11:20:00 End 2025.12.03 @ 11:32:51 Sessions 1 Manual Loads 0 Difficulty Explorer Special Mode None Game No. 207 Rogue 0 Adventurer 0 Explorer 207 Win Type - Total 0 Types 0/0/0/0/0/0/0/0/0/0 Lore% 70 Gallery% 66 Achievement% 52 Wizard Run 0 Options --------- Layout 1 ASCII 0 Keyboard 0 Movement Mouse Keybinds 0 Fullscreen 1 Font 24/Smallcaps Map View 50x35 Zoom Use 0% Tactical HUD 1 Map Filters NONE Filters NONE Steam 1 RUN: 40d30bb7-3b62-48ee-bd87-208f47147e65